bitfinex/quotes_SOLUSD_20260102
["timestamp","ask_amount","ask_price","bid_price","bid_amount"]
[1767359718780,0.1,128.54,128.52,25.8200795]
[1767359718979,0.1,128.54,128.52,22.67822494]
[1767359719288,1e-08,128.54,128.52,25.8200795]
[1767359719593,1e-08,128.54,128.53,0.67780742]
[1767359719893,0.77780742,128.55,128.52,22.67822494]
[1767359720277,0.1,128.55,128.52,25.8200795]
[1767359720498,0.1,128.55,128.53,0.67780742]
[1767359721184,0.77780742,128.55,128.52,22.67822494]
[1767359721488,0.77780742,128.55,128.5,3.92006467]
[1767359721489,0.67780742,128.54,128.5,0.67780742]
[1767359721688,0.67780742,128.53,128.49,21.98238987]
[1767359721997,0.67780742,128.52,128.49,22.66019729]
[1767359723485,0.67780742,128.53,128.5,0.67780742]
[1767359723896,0.67780742,128.53,128.49,42.11696435]
[1767359724092,0.67780742,128.53,128.5,0.67780742]
[1767359725098,0.67780742,128.54,128.5,0.67780742]
[1767359725279,0.77780742,128.55,128.51,0.67780742]
[1767359725871,0.77780742,128.55,128.52,7.78089013]
[1767359726884,0.67580132,128.54,128.52,7.78089013]
[1767359729515,0.67580132,128.54,128.5,14.97821011]
[1767359729682,0.67580132,128.53,128.5,21.98175864]
[1767359729881,3.81765588,128.53,128.5,14.2]
[1767359730100,3.81765588,128.52,128.5,14.2]
[1767359730886,3.81765588,128.52,128.49,8.46020463]
[1767359731086,0.67580132,128.52,128.5,7.78198245]
[1767359731405,0.67580132,128.53,128.5,7.78198245]
[1767359731592,0.67580132,128.53,128.5,9.23799998]
[1767359732298,0.67580132,128.54,128.51,0.67780742]
[1767359732504,0.67580132,128.54,128.5,9.23799998]
[1767359734699,3.81765588,128.54,128.5,9.23799998]
[1767359734892,0.67580132,128.53,128.5,9.23799998]
[1767359739802,3.81765588,128.53,128.5,9.23799998]
[1767359740604,7.8790819,128.55,128.5,9.23799998]
[1767359740605,0.67580132,128.52,128.5,0.77821011]
[1767359740811,0.67580132,128.52,128.49,22.66036525]
[1767359741911,0.67580132,128.52,128.49,8.46036525]
[1767359742111,0.67580132,128.52,128.49,22.66036525]
[1767359742493,3.81765588,128.52,128.49,22.66036525]
[1767359742893,3.14185456,128.52,128.49,7.78255783]
[1767359743102,3.81765588,128.52,128.49,8.46036525]
[1767359743498,3.14185456,128.52,128.49,7.78255783]
[1767359743712,3.81765588,128.51,128.48,22.66094159]
[1767359743912,0.67580132,128.51,128.48,22.66094159]
[1767359744614,0.67580132,128.51,128.48,8.46094159]
[1767359744791,3.81765588,128.51,128.48,22.66094159]
[1767359745916,0.67580132,128.51,128.48,22.66094159]
[1767359750411,0.67580132,128.54,128.49,0.67780742]
[1767359750617,3.81765588,128.53,128.49,0.67780742]
[1767359750818,0.67580132,128.52,128.49,0.67780742]
[1767359752028,0.67580132,128.53,128.49,0.67780742]
[1767359752503,0.67580132,128.53,128.5,8.45990858]
[1767359754221,0.67580132,128.52,128.5,7.78210116]
[1767359755519,7.87911469,128.55,128.5,7.78210116]
[1767359755520,0.77580132,128.55,128.5,0.67780742]
[1767359755722,0.77580132,128.55,128.51,0.67780742]
[1767359755904,0.65723829,128.54,128.51,0.67780742]
[1767359756105,0.65723829,128.54,128.51,14.87780742]
[1767359757105,3.79909285,128.54,128.51,14.87780742]
[1767359757520,3.14185456,128.53,128.5,7.78178151]
[1767359757706,0.65723829,128.52,128.5,21.98178151]
[1767359758327,3.14185456,128.53,128.5,22.65958893]
[1767359758620,3.79909285,128.53,128.5,22.65958893]
[1767359760643,3.79909285,128.53,128.49,19.45590133]
[1767359760644,0.65723829,128.5,128.46,0.67780742]
[1767359760848,0.65723829,128.46,128.43,8.46406326]
[1767359761127,0.65723829,128.46,128.39,8.46612196]
[1767359761128,0.65723829,128.43,128.39,8.46612196]
[1767359761336,0.65723829,128.45,128.4,7.78813043]
[1767359761517,0.65723829,128.43,128.4,7.78813043]
[1767359761827,3.79909285,128.43,128.4,7.78813043]
[1767359762005,3.79909285,128.43,128.39,0.67780742]
[1767359762006,3.79909285,128.41,128.38,0.2]
[1767359762202,0.65723829,128.4,128.38,14.4]
[1767359762402,3.79909285,128.41,128.38,22.18903458]
[1767359763232,3.14185456,128.42,128.38,42.38202055]
[1767359764426,7.78592011,128.44,128.38,42.38202055]
[1767359764626,3.14185456,128.42,128.38,42.38202055]
[1767359765232,3.79909285,128.42,128.38,42.38202055]
[1767359765735,0.65723829,128.41,128.38,22.90858232]
[1767359765945,3.79909285,128.41,128.38,15.11954774]
[1767359766235,3.79909285,128.41,128.38,0.91954774]
[1767359766415,3.79909285,128.41,128.38,8.70877398]
[1767359766738,0.65723829,128.41,128.38,8.70877398]
[1767359772631,0.65723829,128.42,128.39,0.71954774]
[1767359773218,3.14185456,128.42,128.38,0.2]
[1767359773419,0.65723829,128.4,128.38,0.2]
[1767359773626,0.65723829,128.4,128.38,7.989024]
[1767359773939,0.65723829,128.4,128.39,7.78876859]
[1767359775217,0.65723829,128.4,128.39,10.93062315]
[1767359776433,0.65723829,128.4,128.39,7.78876859]
[1767359777440,0.65723829,128.4,128.38,7.98911775]
[1767359778218,0.65723829,128.45,128.38,30.1968878]
[1767359778541,0.65723829,128.42,128.38,30.1968878]
[1767359780218,0.65723829,128.42,128.39,2.01478408]
[1767359782729,0.65723829,128.42,128.39,9.80350818]
[1767359783318,0.65723829,128.41,128.38,2.21478408]
[1767359783536,0.65723829,128.41,128.38,10.00413891]
[1767359785022,0.65723829,128.41,128.38,10.72368665]
[1767359785227,0.65723829,128.41,128.39,2.01478408]
[1767359785736,0.65723829,128.41,128.38,10.72368665]
[1767359791145,0.65723829,128.41,128.38,8.70890257]
[1767359791345,0.65723829,128.41,128.38,10.72368665]
[1767359791729,0.65723829,128.41,128.38,8.70890257]
[1767359794449,0.65723829,128.41,128.38,7.98935483]
[1767359795542,0.65723829,128.41,128.38,8.65342706]
[1767359795960,0.65723829,128.41,128.38,7.98935483]
[1767359797832,0.65723829,128.41,128.38,8.65342706]
[1767359800250,0.65723829,128.41,128.38,0.86407223]
[1767359806739,0.65723829,128.41,128.38,0.2]
[1767359807264,0.65723829,128.41,128.38,7.98921896]
[1767359807441,0.65723829,128.41,128.38,8.65329119]
[1767359811760,0.65723829,128.41,128.38,0.86407223]
[1767359812061,0.65723829,128.41,128.38,0.2]
[1767359812474,0.65636166,128.4,128.38,0.2]
[1767359813159,0.62636166,128.4,128.38,0.2]
[1767359814942,0.65636166,128.39,128.38,0.2]
[1767359815348,2.67114574,128.4,128.38,0.2]
[1767359815749,0.65636166,128.4,128.38,0.2]
[1767359821470,2.67114574,128.4,128.38,0.2]
[1767359821764,0.70599297,128.38,128.37,0.2]
[1767359822252,2.72077705,128.39,128.37,0.2]
[1767359823441,0.70599297,128.39,128.37,0.2]
[1767359828370,0.70599297,128.39,128.37,0.90386046]
[1767359831073,0.70599297,128.39,128.37,0.2]
[1767359831266,0.70599297,128.37,128.34,0.70386046]
[1767359831454,0.70599297,128.35,128.33,0.2]
[1767359831655,0.70599297,128.35,128.32,0.2]
[1767359831656,0.70599297,128.34,128.32,0.2]
[1767359831975,0.70599297,128.34,128.32,7.99295395]
[1767359832555,0.70599297,128.34,128.32,0.2]
[1767359833856,0.70599297,128.34,128.32,7.99276131]
[1767359834874,0.70599297,128.34,128.32,0.2]
[1767359837165,3.8578192,128.34,128.32,0.2]
[1767359839466,3.8578192,128.33,128.29,8.49849037]
[1767359839773,3.15182623,128.32,128.29,8.49849037]
[1767359840167,3.8578192,128.32,128.29,8.49849037]
[1767359840675,3.8578192,128.32,128.29,8.49866964]
[1767359841887,3.15182623,128.32,128.3,0.70386046]
[1767359842259,3.8578192,128.33,128.3,0.70386046]
[1767359843385,3.8278192,128.33,128.3,0.70386046]
[1767359846389,0.67599297,128.33,128.3,8.49795575]
[1767359846588,3.8278192,128.33,128.3,0.70386046]
[1767359850683,3.8278192,128.33,128.31,0.71814247]
[1767359850874,3.8278192,128.33,128.3,0.71814247]
[1767359859186,3.8278192,128.33,128.3,8.51236005]
[1767359859392,3.8278192,128.33,128.31,0.71814247]
[1767359859597,22.01159349,128.35,128.31,0.71814247]
[1767359859598,17.37182623,128.35,128.31,0.71814247]
[1767359859795,14.88147312,128.35,128.31,0.71814247]
[1767359859975,3.81329935,128.35,128.31,0.71814247]
[1767359860790,3.81329935,128.34,128.31,0.71814247]
[1767359861796,3.81329935,128.34,128.32,0.71814247]
[1767359863677,3.15182623,128.34,128.32,8.51112079]
[1767359863875,3.81329935,128.35,128.32,8.51112079]
[1767359864588,0.66147312,128.37,128.33,0.71814247]
[1767359864795,3.81329935,128.36,128.33,0.71814247]
[1767359866089,3.81329935,128.36,128.33,8.51040401]
[1767359867879,0.66147312,128.38,128.34,0.71814247]
[1767359868077,0.66147312,128.38,128.35,0.71814247]
[1767359868281,10.9406207,128.39,128.35,0.71814247]
[1767359868470,11.60209382,128.39,128.35,0.71814247]
[1767359870282,0.66147312,128.41,128.36,0.71814247]
[1767359870581,3.15182623,128.39,128.36,0.71814247]
[1767359870887,3.81329935,128.4,128.36,0.71814247]
[1767359871194,3.15182623,128.39,128.36,0.71814247]
[1767359872495,3.15182623,128.39,128.36,8.50865166]
[1767359872681,3.15182623,128.39,128.37,0.71814247]
[1767359873200,3.81329935,128.4,128.37,0.71814247]
[1767359874894,3.15182623,128.41,128.38,0.71814247]
[1767359875279,3.81329935,128.41,128.38,0.71814247]
[1767359876883,0.70093255,128.4,128.38,0.71814247]
[1767359877904,3.15182623,128.41,128.38,0.71814247]
[1767359878085,3.85275878,128.41,128.38,0.71814247]
[1767359881009,3.85275878,128.42,128.39,0.6785964]
[1767359881309,3.15182623,128.41,128.39,0.6785964]
[1767359882407,7.78638494,128.43,128.39,7.78868934]
[1767359882584,3.85275878,128.43,128.4,0.6785964]
[1767359882990,3.15182623,128.43,128.4,0.6785964]
[1767359883191,3.85275878,128.42,128.4,0.6785964]
[1767359887414,7.78672037,128.43,128.4,0.6785964]
[1767359887597,0.70093255,128.43,128.4,0.6785964]
[1767359887908,0.80093255,128.46,128.42,0.6785964]
[1767359888092,0.80093255,128.46,128.42,3.15182623]
[1767359888288,0.80093255,128.46,128.43,0.6785964]
[1767359888289,0.1,128.46,128.43,0.6785964]
[1767359888493,0.1,128.46,128.44,0.6785964]
[1767359889330,3.85275878,128.45,128.41,0.6785964]
[1767359889611,3.85275878,128.45,128.41,7.78724133]
[1767359889797,3.95275878,128.46,128.42,0.6785964]
[1767359889994,0.80093255,128.46,128.42,0.6785964]
[1767359890190,0.80093255,128.46,128.43,8.46476449]
[1767359890398,0.1,128.46,128.44,7.78569746]
[1767359890716,0.70093255,128.49,128.45,0.6785964]
[1767359892394,3.85275878,128.49,128.45,0.6785964]
[1767359892688,0.70093255,128.49,128.45,0.6785964]
[1767359892887,3.85275878,128.49,128.45,0.6785964]
[1767359893317,3.85275878,128.49,128.45,8.46356803]
[1767359893611,3.85275878,128.48,128.44,0.6785964]
[1767359893814,3.85275878,128.47,128.44,0.6785964]
[1767359894719,7.7827154,128.49,128.45,0.6785964]
[1767359894720,3.85275878,128.48,128.45,0.6785964]
[1767359895900,11.63612967,128.48,128.45,0.6785964]
[1767359897031,3.85275878,128.48,128.45,0.6785964]
[1767359897717,0.70093255,128.48,128.45,0.6785964]
[1767359898015,3.85275878,128.48,128.45,0.6785964]
[1767359898602,2.71398515,128.48,128.45,0.6785964]
[1767359899216,10.49738785,128.48,128.45,0.6785964]
[1767359899422,2.21398515,128.48,128.45,0.6785964]
[1767359903622,8.28792305,128.49,128.45,0.6785964]
[1767359903812,10.30097565,128.49,128.45,0.6785964]
[1767359906604,2.51800689,128.48,128.45,0.6785964]
[1767359907010,2.0130526,128.48,128.43,24.01910244]
[1767359907233,2.0130526,128.48,128.44,0.67082232]
[1767359907234,2.51800689,128.48,128.44,0.67082232]
[1767359907400,2.51800689,128.48,128.45,0.67082232]
[1767359908414,2.51800689,128.47,128.43,8.45688812]
[1767359908737,2.51800689,128.47,128.44,0.67082232]
[1767359909837,2.0130526,128.46,128.41,7.78723598]
[1767359910037,2.0130526,128.44,128.42,0.67082232]
[1767359911917,2.51800689,128.45,128.42,0.67082232]
[1767359914226,0.50495429,128.48,128.42,7.78674291]
[1767359914525,2.51800689,128.45,128.42,0.67082232]
[1767359914721,2.0130526,128.43,128.4,0.67082232]
[1767359914915,2.0130526,128.44,128.41,0.67082232]
[1767359916531,8.29031477,128.45,128.41,0.67082232]
[1767359916713,2.0130526,128.44,128.41,0.67082232]
[1767359919424,8.29031477,128.45,128.41,0.67082232]
[1767359919726,2.0130526,128.44,128.41,0.67082232]
[1767359921936,8.29031477,128.45,128.41,0.67082232]
[1767359922136,2.0130526,128.44,128.41,0.67082232]
[1767359923031,0.50495429,128.45,128.41,7.78745241]
[1767359923231,2.51800689,128.45,128.42,0.67082232]
[1767359925528,2.0130526,128.44,128.42,0.67082232]
[1767359926038,2.51800689,128.43,128.4,0.67082232]
[1767359926525,2.0130526,128.43,128.4,0.67082232]
[1767359927937,2.51800689,128.42,128.39,0.67082232]
[1767359928235,2.0130526,128.41,128.38,8.45988211]
[1767359930233,2.51800689,128.42,128.38,8.45988211]
[1767359930447,8.29074366,128.44,128.39,0.67082232]
[1767359930617,2.0130526,128.43,128.39,0.67082232]
[1767359930937,10.30379626,128.44,128.39,0.67082232]
[1767359931855,2.51800689,128.44,128.41,0.67082232]
[1767359932519,2.0130526,128.44,128.41,0.67082232]
[1767359934942,16.2330526,128.45,128.42,0.67082232]
[1767359935433,0.50495429,128.46,128.42,0.67082232]
[1767359935734,2.51800689,128.46,128.43,0.67082232]
[1767359938235,2.0130526,128.46,128.43,0.67082232]
[1767359938643,8.28909599,128.47,128.43,0.67082232]
[1767359938938,2.0130526,128.46,128.43,0.67082232]
[1767359942243,8.28909599,128.47,128.43,0.67082232]
[1767359942425,2.0130526,128.46,128.43,0.67082232]
[1767359945029,9.79762602,128.46,128.43,0.67082232]
[1767359945230,10.30258031,128.46,128.43,0.67082232]
[1767359946130,9.79762602,128.46,128.42,7.78666216]
[1767359946445,0.50495429,128.45,128.42,8.44852242]
[1767359947448,0.50495429,128.45,128.41,7.78755548]
[1767359947643,0.50495429,128.45,128.42,0.66186026]
[1767359949047,10.30258031,128.46,128.42,0.66186026]
[1767359956448,10.30258031,128.46,128.42,7.78691796]
[1767359956647,10.30258031,128.46,128.43,0.66186026]
[1767359956849,136.17864533,128.48,128.43,0.66186026]
[1767359956850,2.0130526,128.47,128.43,0.66186026]
[1767359957542,2.51800689,128.47,128.43,0.66186026]
[1767359958055,2.51800689,128.47,128.43,8.44803638]
[1767359958250,2.51800689,128.47,128.44,0.66186026]
[1767359958641,0.70090952,128.49,128.45,14.22]
[1767359959153,0.70090952,128.49,128.44,2.79162625]
[1767359959336,0.70090952,128.49,128.45,14.22]
[1767359959538,0.70090952,128.49,128.45,22.00475985]
[1767359960051,2.0130526,128.49,128.45,14.22]
[1767359960256,0.70090952,128.48,128.45,14.22]
[1767359960433,0.70090952,128.48,128.44,3.14505581]
[1767359960635,0.70090952,128.48,128.44,14.22]
[1767359961241,0.70090952,128.48,128.45,7.7851157]
[1767359962353,0.70090952,128.47,128.44,22.0055518]
[1767359963641,0.70090952,128.47,128.44,25.15060761]
[1767359966643,0.68218941,128.48,128.45,3.14505581]
[1767359968156,0.68218941,128.48,128.45,10.92962273]
[1767359968860,102.6,128.53,128.47,3.14505581]
[1767359969047,0.1,128.53,128.49,3.14505581]
[1767359969848,0.1,128.53,128.48,3.14505581]
[1767359970666,0.68218941,128.52,128.48,10.92781494]
[1767359972344,0.68218941,128.52,128.49,3.14505581]
[1767359973854,0.68218941,128.52,128.48,10.92781494]
[1767359975971,0.68218941,128.52,128.49,3.14505581]
[1767359976267,1e-08,128.53,128.51,3.14505581]
[1767359976473,1e-08,128.53,128.52,3.14505581]
[1767359977181,1e-08,128.53,128.51,7.780897]
[1767359977378,1e-08,128.53,128.51,10.92595281]
[1767359980476,1e-08,128.53,128.52,3.14505581]
[1767359980876,0.1,128.54,128.52,3.14505581]
[1767359982370,0.1,128.54,128.53,3.14505581]
[1767359983064,0.1,128.54,128.53,10.92534056]
[1767359984354,0.1,128.54,128.53,3.14505581]
[1767359985883,0.78218941,128.56,128.53,25.12534056]
[1767359986174,0.78218941,128.56,128.54,3.14505581]
[1767359987882,0.78218941,128.56,128.55,3.14505581]
[1767359988099,0.1,128.56,128.55,3.14505581]
[1767359988780,0.1,128.56,128.54,7.77926156]
[1767359988984,0.1,128.56,128.55,3.14505581]
[1767359989871,0.78218941,128.57,128.55,10.9241301]
[1767359990284,0.78218941,128.57,128.55,7.77907429]
[1767359990670,0.78218941,128.57,128.55,10.9241301]
[1767359991184,0.78218941,128.57,128.55,7.77907429]
[1767359991386,0.1,128.57,128.55,7.77907429]
[1767359991684,1e-08,128.57,128.55,7.77907429]
[1767359991974,1e-08,128.57,128.54,11.70238164]
[1767359992970,1e-08,128.57,128.55,3.14505581]
[1767359993171,1e-08,128.57,128.56,3.14505581]
[1767359993676,1e-08,128.57,128.55,3.14505581]
[1767359994068,1e-08,128.57,128.56,7.77846919]
[1767359994772,1e-08,128.57,128.56,21.97846919]
[1767359996466,0.1,128.59,128.56,21.97846919]
[1767359996880,0.79160569,128.59,128.56,7.77846919]
[1767359999488,0.1,128.59,128.56,7.77846919]
[1767360000066,0.79160569,128.59,128.56,7.77846919]
[1767360000385,0.1,128.59,128.56,30.36969799]
[1767360000565,0.1,128.59,128.57,0.77778641]
[1767360000887,0.1,128.59,128.58,14.2]
[1767360002282,3.9366615,128.59,128.56,21.97817652]
[1767360002464,0.1,128.59,128.57,7.77780706]
[1767360002665,0.1,128.59,128.58,7.77725929]
[1767360002867,0.1,128.6,128.58,7.77725929]
[1767360003568,0.1,128.61,128.58,27.22040752]
[1767360003768,0.1,128.62,128.59,14.2]
[1767360003971,0.1,128.63,128.6,7.77604976]
[1767360004194,0.1,128.63,128.61,14.2]
[1767360004404,1e-08,128.63,128.61,14.2]
[1767360004898,1e-08,128.63,128.6,27.21617417]
[1767360004899,18.68742977,128.66,128.62,3.14505581]
[1767360005101,3.8366615,128.65,128.6,42.21617417]
[1767360005305,3.8366615,128.65,128.59,0.77766544]
[1767360005306,3.14505581,128.63,128.61,14.2]
[1767360005780,3.8366615,128.63,128.59,27.21806002]
[1767360005971,0.69160569,128.65,128.59,21.9765961]
[1767360006174,0.69160569,128.64,128.59,41.4182323]
[1767360006366,0.69160569,128.64,128.6,3.14505581]
[1767360006784,3.14505581,128.64,128.59,42.19589774]
[1767360006971,0.69160569,128.63,128.59,42.19589774]
[1767360007173,0.69160569,128.62,128.6,14.2]
[1767360007777,0.69160569,128.62,128.59,7.7765961]
[1767360008389,0.69160569,128.65,128.6,3.14505581]
[1767360008580,0.69160569,128.65,128.61,14.2]
[1767360008782,0.69160569,128.65,128.61,3.14505581]
[1767360008980,0.69160569,128.65,128.61,17.34505581]
[1767360009183,0.69160569,128.65,128.61,14.2]
[1767360009682,0.69160569,128.65,128.61,21.97501252]
[1767360011476,3.8366615,128.65,128.61,21.97501252]
[1767360011678,0.69160569,128.65,128.61,41.41362538]
[1767360012398,19.37903546,128.66,128.63,3.14505581]
[1767360012698,19.37903546,128.66,128.63,10.91886271]
[1767360012884,18.68742977,128.66,128.64,3.14505581]
[1767360013296,18.68742977,128.66,128.64,14.2]
[1767360013488,18.68742977,128.66,128.64,17.34505581]
[1767360013798,19.37903546,128.66,128.64,14.2]
[1767360015112,19.37903546,128.66,128.64,21.97317745]
[1767360015397,0.69160569,128.68,128.65,3.14505581]
[1767360015576,10.91474163,128.71,128.67,3.14505581]
[1767360015775,3.14505581,128.71,128.65,14.87221218]
[1767360016087,7.86907224,128.72,128.67,3.14505581]
[1767360016088,11.01412805,128.72,128.67,3.14505581]
[1767360016276,11.01412805,128.72,128.65,14.87221218]
[1767360016277,11.01412805,128.72,128.68,3.14505581]
[1767360016473,11.01412805,128.72,128.68,3.11549907]
[1767360017277,11.01412805,128.72,128.67,7.77181395]
[1767360017478,0.69160569,128.71,128.68,3.14505581]
[1767360019382,0.69160569,128.71,128.69,1.052e-05]
[1767360020598,0.69160569,128.71,128.69,7.65e-06]
[1767360021775,0.69160569,128.71,128.67,7.77181395]
[1767360021776,0.69160569,128.71,128.68,2.00524806]
[1767360023399,0.69160569,128.7,128.66,22.64432728]
[1767360023586,0.69160569,128.7,128.68,2.00524806]
[1767360024188,0.69160569,128.7,128.68,1.9759861]
[1767360024792,0.69160569,128.7,128.67,7.7717937]
[1767360025003,0.69160569,128.7,128.68,2.00524806]
[1767360025404,0.69160569,128.7,128.67,7.7717937]
[1767360025586,0.69160569,128.7,128.68,2.00524806]
[1767360025785,0.69160569,128.71,128.69,2.00524806]
[1767360026117,0.69160569,128.71,128.68,2.00524806]
[1767360026411,0.69160569,128.71,128.68,7.65e-06]
[1767360027288,0.69160569,128.71,128.69,6.8e-07]
[1767360027810,0.69160569,128.71,128.67,10.44154574]
[1767360028016,0.6865752,128.7,128.66,16.86997694]
[1767360028194,0.6865752,128.69,128.65,7.77249199]
[1767360028387,0.6865752,128.69,128.66,0.66472888]
[1767360028707,0.6865752,128.69,128.66,8.4370929]
[1767360031407,0.6865752,128.68,128.65,7.77280704]
[1767360031790,0.6865752,128.68,128.65,8.43753592]
[1767360032410,0.6865752,128.66,128.64,7.77339893]
[1767360033496,0.6865752,128.66,128.64,7.74433489]
[1767360034015,0.6865752,128.67,128.64,8.40906377]
[1767360035812,2.69182326,128.67,128.64,8.40906377]
[1767360036197,0.6865752,128.67,128.64,8.40906377]
[1767360036596,0.6865752,128.64,128.61,0.77754451]
[1767360036801,0.6865752,128.63,128.61,7.77517564]
[1767360037122,0.6865752,128.63,128.6,7.77579216]
[1767360037123,2.69182326,128.63,128.6,7.77579216]
[1767360037412,0.6865752,128.63,128.6,7.77579216]
[1767360037618,0.6865752,128.63,128.61,7.77530571]
[1767360037818,2.69182326,128.65,128.61,8.44003459]
[1767360038209,0.6865752,128.64,128.61,8.44003459]
[1767360038805,0.6865752,128.67,128.63,2.66997694]
[1767360039301,0.6865752,128.67,128.64,0.63544591]
[1767360039706,2.00524806,128.69,128.64,8.40858655]
[1767360039894,2.69182326,128.69,128.64,9.7783887]
[1767360040091,0.6865752,128.68,128.64,29.2124683]
[1767360040504,0.6865752,128.68,128.64,27.17788635]
[1767360040709,0.6865752,128.68,128.64,29.18313441]
[1767360041223,0.6865752,128.68,128.64,29.84545713]
[1767360041416,0.6865752,128.68,128.64,29.18313441]
[1767360041624,0.6865752,128.68,128.65,0.66232272]
[1767360041929,0.6865752,128.69,128.65,27.86752388]
[1767360043401,2.69182326,128.69,128.65,27.86752388]
[1767360045614,2.69182326,128.69,128.65,8.4349549]
[1767360047225,2.00524806,128.69,128.64,14.97736318]
[1767360047410,2.00524806,128.66,128.63,0.66232272]
[1767360047728,2.00524806,128.66,128.63,8.43624698]
[1767360047932,2.69182326,128.66,128.62,7.77462172]
[1767360048230,2.69182326,128.65,128.62,22.63694444]
[1767360049230,0.6865752,128.64,128.61,22.63769628]
[1767360049530,2.69182326,128.63,128.6,14.2]
[1767360049728,0.6865752,128.69,128.62,2.00524806]
[1767360050022,0.6865752,128.68,128.63,16.98267167]
[1767360050230,0.6865752,128.67,128.63,16.98267167]
[1767360050538,0.6865752,128.67,128.64,14.2]
[1767360051308,0.6865752,128.67,128.64,21.97343083]
[1767360052110,0.6865752,128.67,128.64,23.97867889]
[1767360053111,0.6865752,128.67,128.64,21.97343083]
[1767360055311,0.6865752,128.67,128.64,23.97867889]
[1767360055634,0.6865752,128.67,128.64,24.75604207]
[1767360056210,2.00524806,128.69,128.64,44.19012167]
[1767360056421,0.66616624,128.69,128.66,2.00524806]
[1767360056625,0.66616624,128.69,128.67,14.2]
[1767360062437,0.66616624,128.69,128.64,20.21144278]
[1767360062741,0.66616624,128.67,128.64,2.00524806]
[1767360062930,0.66616624,128.69,128.66,7.77237778]
[1767360063131,0.66616624,128.69,128.66,7.74188249]
[1767360063652,0.66616624,128.69,128.65,9.77795987]
[1767360064037,0.66616624,128.69,128.66,9.77744625]
[1767360064234,0.66616624,128.71,128.67,2.00524806]
[1767360064429,0.66616624,128.71,128.67,9.77657983]
[1767360065436,0.66616624,128.71,128.67,7.77133177]
[1767360065636,0.66616624,128.71,128.67,9.77657983]
[1767360067218,0.66616624,128.71,128.67,7.77133177]
[1767360067417,0.66616624,128.7,128.67,7.77133177]
[1767360067640,2.6714143,128.7,128.67,7.77133177]
[1767360068342,0.66616624,128.7,128.67,7.77133177]
[1767360070135,0.66616624,128.7,128.66,21.97242344]
[1767360070646,0.66616624,128.69,128.66,21.97242344]
[1767360070842,2.6714143,128.69,128.66,21.97242344]
[1767360072149,0.66616624,128.69,128.66,21.97242344]
[1767360074753,0.76616624,128.72,128.66,41.40348204]
[1767360074923,2.7714143,128.72,128.66,42.18072438]
[1767360075126,0.66616624,128.71,128.66,42.18072438]
[1767360076347,0.66616624,128.71,128.66,44.18597244]
[1767360078756,0.66616624,128.71,128.66,42.18072438]
[1767360078931,2.6714143,128.71,128.66,42.18072438]
[1767360079747,0.66616624,128.71,128.66,42.18072438]
[1767360080052,2.6714143,128.71,128.66,42.18072438]
[1767360082449,0.66616624,128.71,128.66,42.18072438]
[1767360082756,3.79983577,128.71,128.66,42.18072438]
[1767360083757,0.1,128.72,128.67,3.13366953]
[1767360084059,3.89983577,128.72,128.68,14.18]
[1767360084354,0.76616624,128.72,128.68,14.18]
[1767360084550,3.89983577,128.72,128.68,14.18]
[1767360084755,3.23366953,128.72,128.69,7.77061154]
[1767360084933,3.89983577,128.72,128.69,7.77061154]
[1767360085146,0.76616624,128.72,128.69,7.77061154]
[1767360086167,3.23366953,128.72,128.69,7.77061154]
[1767360086462,0.70438145,128.71,128.69,7.77061154]
[1767360088703,3.23366953,128.72,128.69,7.77061154]
[1767360088957,1e-08,128.72,128.71,0.65415256]
[1767360089265,1e-08,128.72,128.71,14.83415256]
[1767360090045,7.7647444,128.79,128.72,0.65415256]
[1767360090358,3.13366953,128.77,128.72,0.65415256]
[1767360090552,3.13366953,128.77,128.72,14.83415256]
[1767360090756,0.70438145,128.75,128.72,14.83415256]
[1767360091258,0.70438145,128.75,128.73,7.768197]
[1767360093168,0.70438145,128.76,128.73,7.768197]
[1767360093367,0.70438145,128.76,128.73,8.42234956]
[1767360094756,0.70438145,128.76,128.73,22.60234956]
[1767360097184,10.61073786,128.8,128.74,0.65415256]
[1767360097388,0.70438145,128.77,128.74,0.65415256]
[1767360098691,10.61073786,128.8,128.75,0.65415256]
[1767360098863,10.61073786,128.8,128.77,0.65415256]
[1767360099359,13.74440739,128.8,128.77,14.83415256]
[1767360099567,13.74440739,128.8,128.77,22.59989568]
[1767360099961,10.61073786,128.8,128.77,22.59989568]
[1767360100365,10.61073786,128.8,128.78,0.65415256]
[1767360101276,10.61073786,128.8,128.78,8.41876984]
[1767360101669,14.44878884,128.8,128.78,7.76461728]
[1767360101887,14.44878884,128.8,128.77,22.59978492]
[1767360102488,11.31511931,128.8,128.77,22.59978492]
[1767360102671,14.44878884,128.8,128.78,7.76513757]
[1767360103069,11.31511931,128.8,128.78,7.76513757]
[1767360103892,0.70438145,128.79,128.77,21.94553087]
[1767360104268,14.44878884,128.8,128.77,22.59968343]
[1767360104466,3.13366953,128.78,128.75,7.76686818]
[1767360104697,3.83805098,128.78,128.74,34.37517122]
[1767360104878,3.83805098,128.78,128.75,8.42085106]